[Event "CZE-ch U14 Girls 2020"]
[Site "Kouty nad Desnou"]
[Date "2020.03.07"]
[Round "1.10"]
[White "Kures, Michael"]
[Black "Tajovsky, Simon"]
[Result "1-0"]
[ECO "B24"]
[WhiteElo "1943"]
[BlackElo "1512"]
[Annotator "ChessBase"]
[PlyCount "71"]
[EventDate "2020.03.07"]
[EventCountry "CZE"]
[SourceTitle "playchess.com"]
[Source "ChessBase"]
[SourceQuality "1"]
[TimeControl "5400+30"]

1. e4 {[%emt 0:00:00]} c5 {[%emt 0:00:00]} 2. Nc3 {[%emt 0:00:33]} Nc6 {[%emt 0:00:00]} 3. Bb5 {[%emt 0:00:41]} g6 {[%emt 0:00:17]} 4. f4 {[%emt 0:00:35]} Bg7 {[%emt 0:00:25]} 5. Nf3 {[%emt 0:00:22]} e6 {[%emt 0:00:40]} 6. Bxc6 {[%emt 0:01:23]} bxc6 {[%emt 0:00:09]} 7. e5 {[%emt 0:00:51]} Ne7 {[%emt 0:00:49]} 8. Ne4 {[%emt 0:03:09]} O-O {[%emt 0:02:42]} 9. Nxc5 {[%emt 0:04:33]} d6 {[%emt 0:03:18]} 10. exd6 {[%emt 0:02:38]} Qxd6 {[%emt 0:00:49]} 11. d4 {[%emt 0:00:20]} Rd8 {[%emt 0:04:17]} 12. c3 {[%emt 0:00:27]} Nd5 {[%emt 0:04:30]} 13. Ne5 {[%emt 0:03:56]} f6 {[%emt 0:20:18]} 14. Nc4 {[%emt 0:00:55]} Qc7 {[%emt 0:01:26]} 15. O-O {[%emt 0:01:01]} e5 {[%emt 0:04:38]} 16. fxe5 {[%emt 0:06:38]} fxe5 {[%emt 0:00:58]} 17. Bg5 {[%emt 0:13:52]} Ne7 {[%emt 0:04:06]} 18. Qe2 {[%emt 0:05:04]} Re8 {[%emt 0:05:21]} 19. Nxe5 {[%emt 0:03:54]} Nd5 {[%emt 0:05:36]} 20. Ncd3 {[%emt 0:03:49]} Ba6 {[%emt 0:03:23]} 21. Bf4 {[%emt 0:12:31]} Nxf4 {[%emt 0:01:15]} 22. Rxf4 {[%emt 0:00:13]} Bxe5 {[%emt 0:01:31]} 23. dxe5 {[%emt 0:00:54]} Bxd3 {[%emt 0:01:25]} 24. Qxd3 {[%emt 0:00:09]} Qxe5 {[%emt 0:00:26]} 25. Qc4+ {[%emt 0:00:21]} Kh8 {[%emt 0:01:01]} 26. Raf1 {[%emt 0:00:51]} Rab8 {[%emt 0:05:28]} 27. b3 {[%emt 0:00:39]} c5 {[%emt 0:04:39]} 28. Rf7 {[%emt 0:01:23]} Rbd8 {[%emt 0:04:04]} 29. Rxa7 {[%emt 0:04:04]} Rf8 {[%emt 0:03:05]} 30. Raf7 {[%emt 0:14:57]} Rxf7 {[%emt 0:03:28]} 31. Qxf7 {[%emt 0:00:05]} Qe3+ {[%emt 0:00:12]} 32. Kh1 {[%emt 0:00:13]} Qxc3 {[%emt 0:00:12]} 33. Qe7 {[%emt 0:00:11]} Rg8 {[%emt 0:02:27]} 34. h3 {[%emt 0:00:19]} Qd3 {[%emt 0:01:58]} 35. Qe5+ {[%emt 0:00:39]} Rg7 {[%emt 0:00:11]} 36. Rf8# 1-0

[Event "CZE-ch U14 Girls 2020"]
[Site "Kouty nad Desnou"]
[Date "2020.03.07"]
[Round "1.11"]
[White "Kanak, Matyas"]
[Black "Winter, Ondrej"]
[Result "0-1"]
[ECO "B38"]
[WhiteElo "1499"]
[BlackElo "1896"]
[Annotator "NA"]
[PlyCount "112"]
[EventDate "2020.03.07"]
[EventCountry "CZE"]
[SourceTitle "playchess.com"]
[Source "ChessBase"]
[SourceQuality "1"]
[TimeControl "5400+30"]

1. e4 {[%emt 0:00:00]} c5 {[%emt 0:00:00]} 2. Nf3 {[%emt 0:00:00]} Nc6 {[%emt 0:00:00]} 3. c4 {[%emt 0:12:00]} g6 {[%emt 0:00:06]} 4. d4 {[%emt 0:00:22]} cxd4 {[%emt 0:00:06]} 5. Nxd4 {[%emt 0:00:14]} Bg7 {[%emt 0:00:04]} 6. Be3 {[%emt 0:00:06]} Nf6 {[%emt 0:00:07]} 7. Nc3 {[%emt 0:00:04]} O-O {[%emt 0:00:08]} 8. Be2 {[%emt 0:00:10]} d6 {[%emt 0:00:22]} 9. O-O {[%emt 0:01:03]} Bd7 {[%emt 0:00:10]} 10. Qd2 {[%emt 0:03:16]} Nxd4 {[%emt 0:00:17]} 11. Bxd4 {[%emt 0:00:06]} Bc6 {[%emt 0:00:03]} 12. Bf3 {[%emt 0:06:59]} a5 {[%emt 0:02:05]} 13. Nd5 {[%emt 0:10:20]} Bxd5 {[%emt 0:06:19]} 14. exd5 {[%emt 0:00:08]} Nd7 {[%emt 0:03:43]} 15. Bxg7 {[%emt 0:02:07]} Kxg7 {[%emt 0:00:49]} 16. Qc3+ {[%emt 0:00:05]} Kg8 {[%emt 0:13:02]} 17. Be4 {[%emt 0:06:22]} Qb6 {[%emt 0:03:01]} 18. Kh1 {[%emt 0:04:51]} Rfc8 {[%emt 0:04:06]} 19. f4 {[%emt 0:01:01]} Qb4 {[%emt 0:03:47]} 20. Qxb4 {[%emt 0:04:21]} axb4 {[%emt 0:00:11]} 21. b3 {[%emt 0:00:10]} Ra3 {[%emt 0:00:48]} 22. Rf2 {[%emt 0:02:43]} Nc5 {[%emt 0:00:27]} 23. Bc2 {[%emt 0:03:43]} Rca8 {[%emt 0:02:26]} 24. Bd1 {[%emt 0:00:11]} Nxb3 {[%emt 0:13:40]} 25. Rb1 {[%emt 0:05:44]} Nc5 {[%emt 0:01:29]} 26. Bb3 {[%emt 0:00:06]} Nxb3 {[%emt 0:01:21]} 27. axb3 {[%emt 0:00:05]} Ra1 {[%emt 0:00:15]} 28. Rff1 {[%emt 0:00:05]} Rxb1 {[%emt 0:00:09]} 29. Rxb1 {[%emt 0:00:09]} Ra2 {[%emt 0:00:12]} 30. Kg1 {[%emt 0:00:06]} Kg7 {[%emt 0:00:03]} 31. g3 {[%emt 0:00:17]} Kf6 {[%emt 0:00:12]} 32. g4 {[%emt 0:01:28]} b6 {[%emt 0:01:28]} 33. Re1 {[%emt 0:00:54]} e6 {[%emt 0:02:21]} 34. dxe6 {[%emt 0:00:13]} fxe6 {[%emt 0:00:07]} 35. Rd1 {[%emt 0:00:13]} Ke7 {[%emt 0:00:19]} 36. Re1 {[%emt 0:00:49]} Kd7 {[%emt 0:00:43]} 37. Rd1 {[%emt 0:00:19]} Rb2 {[%emt 0:01:37]} 38. Rd3 {[%emt 0:00:25]} Rc2 {[%emt 0:01:03]} 39. Rh3 {[%emt 0:01:36]} Rc3 {[%emt 0:01:01]} 40. Rg3 {[%emt 0:00:09]} Kc6 {[%emt 0:02:25]} 41. Kf2 {[%emt 0:00:08]} Rc2+ {[%emt 0:11:05]} 42. Kg1 {[%emt 0:00:07]} Rc3 {[%emt 0:16:21]} 43. Kf2 {[%emt 0:00:06]} b5 {[%emt 0:00:07]} 44. cxb5+ {[%emt 0:00:39]} Kxb5 {[%emt 0:00:15]} 45. Re3 {[%emt 0:00:11]} Kc6 {[%emt 0:03:47]} 46. h4 Rxe3 {[%emt 0:00:21]} 47. Kxe3 {[%emt 0:00:54]} Kd5 {[%emt 0:00:10]} 48. Kd3 {[%emt 0:00:16]} e5 {[%emt 0:03:20]} 49. f5 {[%emt 0:00:49]} gxf5 {[%emt 0:00:28]} 50. g5 {[%emt 0:00:05]} e4+ {[%emt 0:00:14]} 51. Ke3 {[%emt 0:00:04]} Ke5 {[%emt 0:00:04]} 52. h5 {[%emt 0:00:11]} f4+ {[%emt 0:00:06]} 53. Ke2 {[%emt 0:00:36]} Kf5 {[%emt 0:00:05]} 54. g6 {[%emt 0:00:11]} hxg6 {[%emt 0:00:26]} 55. h6 {[%emt 0:00:05]} Kf6 {[%emt 0:00:07]} 56. h7 {[%emt 0:00:03]} Kg7 {[%emt 0:00:03]} 0-1

[Event "CZE-ch U14 Girls 2020"]
[Site "Kouty nad Desnou"]
[Date "2020.03.07"]
[Round "1.11"]
[White "Martinkova, Magdalena"]
[Black "Macova, Marketa"]
[Result "1-0"]
[ECO "C27"]
[WhiteElo "1473"]
[BlackElo "1025"]
[Annotator "NA RC"]
[PlyCount "73"]
[EventDate "2020.03.07"]
[EventCountry "CZE"]
[SourceTitle "playchess.com"]
[Source "ChessBase"]
[SourceQuality "1"]
[TimeControl "5400+30"]

1. e4 {[%emt 0:00:00]} e5 {[%emt 0:00:00]} 2. Nc3 {[%emt 0:00:00]} Nc6 {[%emt 0:00:00]} 3. Bc4 {[%emt 0:00:00]} Nf6 {[%emt 0:00:02]} 4. d3 {[%emt 0:00:00]} Bc5 {[%emt 0:00:08]} 5. f4 {[%emt 0:03:42]} d6 {[%emt 0:02:40]} 6. f5 {[%emt 0:02:55]} b6 {[%emt 0:03:37]} 7. Bg5 {[%emt 0:09:37]} Bb7 {[%emt 0:03:14]} 8. Nf3 {[%emt 0:04:48]} Qe7 {[%emt 0:02:20]} 9. Nd5 {[%emt 0:04:05]} Qd8 {[%emt 0:03:43]} 10. Qd2 {[%emt 0:03:47]} Nd4 {[%emt 0:03:45]} 11. Nxd4 {[%emt 0:03:10]} Bxd5 {[%emt 0:02:39]} 12. Bxd5 {[%emt 0:00:41]} Bxd4 {[%emt 0:02:52]} 13. Bxa8 {[%emt 0:01:25]} Qxa8 {[%emt 0:02:20]} 14. c3 {[%emt 0:00:51]} Bc5 {[%emt 0:03:59]} 15. Bxf6 {[%emt 0:00:16]} gxf6 {[%emt 0:02:08]} 16. b4 {[%emt 0:00:25]} Bxb4 {[%emt 0:03:21]} 17. cxb4 {[%emt 0:00:12]} Rg8 {[%emt 0:01:59]} 18. Rc1 {[%emt 0:02:15]} Qb7 {[%emt 0:01:13]} 19. g3 {[%emt 0:01:16]} c5 {[%emt 0:10:55]} 20. Qc2 {[%emt 0:03:18]} Qc7 {[%emt 0:02:49]} 21. bxc5 {[%emt 0:01:24]} bxc5 {[%emt 0:01:04]} 22. Rb1 {[%emt 0:01:05]} Ke7 {[%emt 0:01:46]} 23. Qb3 {[%emt 0:00:29]} Rc8 {[%emt 0:07:02]} 24. Qb7 {[%emt 0:00:00]} Qxb7 {[%emt 0:00:30]} 25. Rxb7+ {[%emt 0:00:00]} Kf8 {[%emt 0:00:30]} 26. Kd2 {[%emt 0:00:16]} a6 {[%emt 0:00:30]} 27. Rhb1 {[%emt 0:00:30]} Kg7 {[%emt 0:00:30]} 28. Rd7 {[%emt 0:00:30]} Rc6 {[%emt 0:00:30]} 29. Rbb7 {[%emt 0:00:30]} Rc8 {[%emt 0:00:30]} 30. Rxf7+ {[%emt 0:00:30]} Kg8 {[%emt 0:02:24]} 31. Rxf6 {[%emt 0:00:07]} Rd8 {[%emt 0:00:58]} 32. Rff7 {[%emt 0:00:30]} Re8 {[%emt 0:01:59]} 33. Rg7+ {[%emt 0:00:15]} Kh8 {[%emt 0:00:36]} 34. Rxh7+ {[%emt 0:00:04]} Kg8 {[%emt 0:00:20]} 35. f6 {[%emt 0:00:04]} Rd8 {[%emt 0:02:17]} 36. Rbg7+ {[%emt 0:00:15]} Kf8 {[%emt 0:00:36]} 37. Rh8# {[%emt 0:00:03]} 1-0

[Event "CZE-ch U14 Girls 2020"]
[Site "Kouty nad Desnou"]
[Date "2020.03.07"]
[Round "1.12"]
[White "Werner, Hong Quan Dan"]
[Black "Zednicek, Filip"]
[Result "1-0"]
[ECO "C50"]
[WhiteElo "1801"]
[BlackElo "1365"]
[Annotator "NA"]
[PlyCount "67"]
[EventDate "2020.03.07"]
[EventCountry "CZE"]
[SourceTitle "playchess.com"]
[Source "ChessBase"]
[SourceQuality "1"]
[TimeControl "5400+30"]

1. e4 {[%emt 0:00:00]} e5 {[%emt 0:00:51]} 2. Nf3 {[%emt 0:00:00]} Nc6 {[%emt 0:01:18]} 3. Bc4 {[%emt 0:00:09]} Nf6 {[%emt 0:01:28]} 4. d3 {[%emt 0:00:26]} Bc5 {[%emt 0:03:07]} 5. c3 {[%emt 0:00:42]} O-O {[%emt 0:02:30]} 6. Nbd2 {[%emt 0:01:18]} d6 {[%emt 0:03:00]} 7. Bb3 {[%emt 0:00:26]} Bg4 {[%emt 0:11:01]} 8. O-O {[%emt 0:01:07]} d5 {[%emt 0:08:44]} 9. exd5 {[%emt 0:05:30]} Nxd5 {[%emt 0:01:44]} 10. Ne4 {[%emt 0:00:15]} Be7 {[%emt 0:04:13]} 11. h3 {[%emt 0:03:20]} Bh5 {[%emt 0:04:32]} 12. Ng3 {[%emt 0:04:37]} Bg6 {[%emt 0:01:03]} 13. Re1 {[%emt 0:05:52]} Bf6 {[%emt 0:03:18]} 14. Ne4 {[%emt 0:06:28]} Be7 {[%emt 0:01:12]} 15. Bc2 {[%emt 0:07:20]} h6 {[%emt 0:09:06]} 16. a3 {[%emt 0:02:14]} Kh8 {[%emt 0:03:39]} 17. c4 {[%emt 0:00:38]} Nf6 {[%emt 0:02:57]} 18. Nc3 {[%emt 0:01:08]} Bh5 {[%emt 0:04:37]} 19. g4 {[%emt 0:03:47]} Bg6 {[%emt 0:00:15]} 20. b4 {[%emt 0:00:23]} h5 {[%emt 0:07:09]} 21. g5 {[%emt 0:00:35]} Nh7 {[%emt 0:02:03]} 22. b5 {[%emt 0:03:22]} Nd4 {[%emt 0:01:25]} 23. Rxe5 {[%emt 0:05:22]} Nxf3+ {[%emt 0:01:07]} 24. Qxf3 {[%emt 0:00:12]} Nxg5 {[%emt 0:01:01]} 25. Qg3 {[%emt 0:01:53]} Bd6 {[%emt 0:02:19]} 26. Qxg5 {[%emt 0:00:57]} f6 {[%emt 0:00:24]} 27. Qxg6 {[%emt 0:00:08]} Bxe5 {[%emt 0:00:09]} 28. d4 {[%emt 0:00:07]} f5 {[%emt 0:00:34]} 29. dxe5 {[%emt 0:01:16]} Qd4 {[%emt 0:00:18]} 30. Bb2 {[%emt 0:00:53]} Qd2 {[%emt 0:00:33]} 31. Nd5 {[%emt 0:00:39]} Rae8 {[%emt 0:01:14]} 32. e6 {[%emt 0:00:23]} Rg8 {[%emt 0:00:42]} 33. Bxf5 {[%emt 0:00:33]} Qh6 {[%emt 0:00:03]} 34. Qxh6# 1-0

[Event "CZE-ch U14 Girls 2020"]
[Site "Kouty nad Desnou"]
[Date "2020.03.07"]
[Round "1.12"]
[White "Nespora, Tatana"]
[Black "Voriskova, Anna"]
[Result "0-1"]
[ECO "B33"]
[WhiteElo "1310"]
[BlackElo "1820"]
[Annotator "NA RC"]
[PlyCount "88"]
[EventDate "2020.03.07"]
[EventCountry "CZE"]
[SourceTitle "playchess.com"]
[Source "ChessBase"]
[SourceQuality "1"]
[TimeControl "5400+30"]

1. e4 {[%emt 0:00:00]} c5 {[%emt 0:00:00]} 2. Nf3 {[%emt 0:00:07]} Nc6 {[%emt 0:00:43]} 3. d4 {[%emt 0:00:56]} cxd4 {[%emt 0:00:19]} 4. Nxd4 {[%emt 0:00:37]} Nf6 {[%emt 0:01:17]} 5. Nc3 {[%emt 0:00:30]} e5 {[%emt 0:00:35]} 6. Ndb5 {[%emt 0:01:37]} d6 {[%emt 0:00:30]} 7. a4 {[%emt 0:01:16]} h6 {[%emt 0:07:59]} 8. Bc4 {[%emt 0:08:50]} Be7 {[%emt 0:04:48]} 9. Be3 {[%emt 0:03:10]} a6 {[%emt 0:06:53]} 10. Na3 {[%emt 0:00:28]} O-O {[%emt 0:00:57]} 11. O-O {[%emt 0:00:27]} Be6 {[%emt 0:04:44]} 12. Qd2 {[%emt 0:10:09]} Rc8 {[%emt 0:05:01]} 13. Ba2 {[%emt 0:02:01]} Bxa2 {[%emt 0:04:39]} 14. Rxa2 {[%emt 0:05:36]} Nb4 {[%emt 0:02:24]} 15. Raa1 {[%emt 0:02:00]} d5 {[%emt 0:02:33]} 16. exd5 {[%emt 0:10:40]} Nbxd5 {[%emt 0:01:50]} 17. Nxd5 {[%emt 0:02:50]} Nxd5 {[%emt 0:01:43]} 18. Rfd1 {[%emt 0:04:32]} Nxe3 {[%emt 0:02:58]} 19. Qxe3 {[%emt 0:00:41]} Qc7 {[%emt 0:02:33]} 20. c3 {[%emt 0:02:23]} Rfd8 {[%emt 0:01:49]} 21. Nc2 {[%emt 0:03:54]} Qa5 {[%emt 0:06:20]} 22. Qe4 {[%emt 0:02:26]} Qb6 {[%emt 0:04:05]} 23. Nb4 {[%emt 0:06:34]} Bxb4 {[%emt 0:03:49]} 24. cxb4 {[%emt 0:00:18]} Rd4 {[%emt 0:05:53]} 25. Qxe5 {[%emt 0:06:38]} Rxb4 {[%emt 0:00:39]} 26. a5 {[%emt 0:00:39]} Qc6 {[%emt 0:01:42]} 27. h3 {[%emt 0:01:57]} Rb5 {[%emt 0:01:29]} 28. Qd4 {[%emt 0:02:15]} Rg5 {[%emt 0:03:35]} 29. g3 {[%emt 0:05:23]} Rc5 {[%emt 0:01:25]} 30. Qe3 {[%emt 0:03:48]} Re8 {[%emt 0:01:05]} 31. Qf4 {[%emt 0:01:36]} Rc2 {[%emt 0:03:00]} 32. b4 {[%emt 0:01:03]} Qe6 {[%emt 0:01:57]} 33. h4 {[%emt 0:03:07]} Rc4 {[%emt 0:04:14]} 34. Qd2 {[%emt 0:01:15]} Qg6 {[%emt 0:01:11]} 35. Qd7 {[%emt 0:01:45]} Rb8 {[%emt 0:05:26]} 36. Qe7 {[%emt 0:00:58]} Re4 {[%emt 0:02:59]} 37. Qc7 {[%emt 0:01:17]} Rbe8 {[%emt 0:01:01]} 38. Rd6 {[%emt 0:00:55]} Re1+ {[%emt 0:00:52]} 39. Rxe1 {[%emt 0:00:47]} Rxe1+ {[%emt 0:00:03]} 40. Kh2 {[%emt 0:00:00]} Qe4 {[%emt 0:00:00]} 41. Rd8+ {[%emt 0:00:00]} Kh7 {[%emt 0:00:00]} 42. g4 {[%emt 0:00:00]} Rh1+ {[%emt 0:00:00]} 43. Kg3 {[%emt 0:00:00]} Rg1+ {[%emt 0:00:00]} 44. Kh3 {[%emt 0:00:00]} Qg2# {[%emt 0:00:00]} 0-1

[Event "CZE-ch U14 Girls 2020"]
[Site "Kouty nad Desnou"]
[Date "2020.03.07"]
[Round "1.13"]
[White "Zelbova, Lada"]
[Black "Hosova, Sandra"]
[Result "1-0"]
[ECO "D02"]
[WhiteElo "1646"]
[BlackElo "1297"]
[Annotator "NA RC"]
[PlyCount "115"]
[EventDate "2020.03.07"]
[EventCountry "CZE"]
[SourceTitle "playchess.com"]
[Source "ChessBase"]
[SourceQuality "1"]
[TimeControl "5400+30"]

1. d4 {[%emt 0:00:00]} d5 {[%emt 0:00:00]} 2. Bf4 {[%emt 0:00:00]} Bf5 {[%emt 0:00:47]} 3. e3 {[%emt 0:03:08]} Nf6 {[%emt 0:01:39]} 4. c4 {[%emt 0:00:19]} c6 {[%emt 0:02:35]} 5. Nc3 {[%emt 0:03:57]} e6 {[%emt 0:02:01]} 6. Qb3 {[%emt 0:00:17]} Qc8 {[%emt 0:02:23]} 7. Nf3 {[%emt 0:07:22]} Nbd7 {[%emt 0:04:12]} 8. h3 {[%emt 0:05:08]} h6 {[%emt 0:03:47]} 9. Rc1 {[%emt 0:04:29]} Be7 {[%emt 0:05:38]} 10. Be2 {[%emt 0:02:21]} O-O {[%emt 0:02:40]} 11. O-O {[%emt 0:00:10]} Re8 {[%emt 0:05:36]} 12. Ne5 {[%emt 0:08:48]} a6 {[%emt 0:06:52]} 13. Rfd1 {[%emt 0:09:22]} Ra7 {[%emt 0:06:02]} 14. Nxd7 {[%emt 0:19:30]} Qxd7 {[%emt 0:02:07]} 15. Qb6 {[%emt 0:00:43]} Rea8 {[%emt 0:03:13]} 16. cxd5 {[%emt 0:03:43]} exd5 {[%emt 0:05:31]} 17. Na4 {[%emt 0:01:35]} Bd8 {[%emt 0:11:10]} 18. Qb3 {[%emt 0:01:45]} b5 {[%emt 0:05:32]} 19. Nc5 {[%emt 0:00:32]} Qe8 {[%emt 0:02:08]} 20. Bd3 {[%emt 0:01:27]} Bxd3 {[%emt 0:01:40]} 21. Nxd3 {[%emt 0:00:23]} a5 {[%emt 0:02:46]} 22. a4 {[%emt 0:03:04]} b4 {[%emt 0:01:23]} 23. Rc2 {[%emt 0:00:57]} Rc8 {[%emt 0:01:46]} 24. Rdc1 {[%emt 0:00:36]} Ra6 {[%emt 0:02:24]} 25. Ne5 {[%emt 0:01:04]} Qe6 {[%emt 0:01:49]} 26. Qd3 {[%emt 0:00:50]} Rb6 {[%emt 0:00:42]} 27. Rc5 {[%emt 0:02:06]} Nd7 {[%emt 0:03:28]} 28. Nxd7 {[%emt 0:01:12]} Qxd7 {[%emt 0:00:02]} 29. Rxa5 {[%emt 0:00:26]} b3 {[%emt 0:01:18]} 30. Ra6 {[%emt 0:02:39]} Qb7 {[%emt 0:00:09]} 31. Rxb6 {[%emt 0:00:42]} Qxb6 {[%emt 0:00:06]} 32. Rc3 {[%emt 0:01:32]} Qa5 {[%emt 0:00:14]} 33. Rxb3 {[%emt 0:00:37]} Qxa4 {[%emt 0:00:07]} 34. Rb7 {[%emt 0:01:08]} Qa8 {[%emt 0:00:50]} 35. Rd7 {[%emt 0:03:17]} Bf6 {[%emt 0:02:35]} 36. Qf5 {[%emt 0:04:21]} Rd8 {[%emt 0:01:09]} 37. Rc7 {[%emt 0:00:41]} Re8 {[%emt 0:01:43]} 38. Qd7 {[%emt 0:02:22]} Kh8 {[%emt 0:04:36]} 39. Qxf7 {[%emt 0:01:41]} Rg8 {[%emt 0:00:21]} 40. Bxh6 {[%emt 0:00:00]} Qe8 {[%emt 0:00:00]} 41. Qxe8 {[%emt 0:00:00]} Rxe8 {[%emt 0:00:00]} 42. Bf4 {[%emt 0:00:00]} Rb8 {[%emt 0:00:00]} 43. Rxg7 {[%emt 0:00:00]} Kxg7 {[%emt 0:00:00]} 44. Bxb8 {[%emt 0:00:00]} Kg6 {[%emt 0:00:00]} 45. Bd6 {[%emt 0:00:00]} Kg5 {[%emt 0:00:00]} 46. g3 {[%emt 0:00:00]} Bd8 {[%emt 0:00:00]} 47. Kf1 {[%emt 0:00:00]} Kf5 {[%emt 0:00:00]} 48. Ke2 {[%emt 0:00:00]} Ba5 {[%emt 0:00:00]} 49. f4 {[%emt 0:00:00]} Kg6 {[%emt 0:00:00]} 50. Kf3 {[%emt 0:00:00]} Bd8 {[%emt 0:00:00]} 51. Kg4 {[%emt 0:00:00]} Bf6 {[%emt 0:00:00]} 52. h4 {[%emt 0:00:00]} Bd8 {[%emt 0:00:00]} 53. h5+ {[%emt 0:00:00]} Kg7 {[%emt 0:00:00]} 54. Kf5 {[%emt 0:00:00]} Ba5 {[%emt 0:00:00]} 55. b4 {[%emt 0:00:00]} Bd8 {[%emt 0:00:00]} 56. Ke6 {[%emt 0:00:00]} Kh6 {[%emt 0:00:00]} 57. g4 {[%emt 0:00:00]} Bh4 {[%emt 0:00:00]} 58. f5 {[%emt 0:00:00]} 1-0

[Event "CZE-ch U14 Girls 2020"]
[Site "Kouty nad Desnou"]
[Date "2020.03.07"]
[Round "1.14"]
[White "Rezna, Hedvika"]
[Black "Trasakova, Adela"]
[Result "0-1"]
[ECO "B13"]
[WhiteElo "1242"]
[BlackElo "1639"]
[Annotator "NA RC"]
[PlyCount "108"]
[EventDate "2020.03.07"]
[EventCountry "CZE"]
[SourceTitle "playchess.com"]
[Source "ChessBase"]
[SourceQuality "1"]
[TimeControl "5400+30"]

1. e4 {[%emt 0:00:00]} c6 {[%emt 0:00:00]} 2. d4 {[%emt 0:00:00]} d5 {[%emt 0:00:01]} 3. exd5 {[%emt 0:00:07]} cxd5 {[%emt 0:00:34]} 4. Bd3 {[%emt 0:00:25]} Nc6 {[%emt 0:00:30]} 5. c3 {[%emt 0:00:19]} Qc7 {[%emt 0:00:33]} 6. h3 {[%emt 0:01:50]} Nf6 {[%emt 0:01:20]} 7. Nf3 {[%emt 0:00:40]} g6 {[%emt 0:01:30]} 8. O-O {[%emt 0:01:22]} Bf5 {[%emt 0:01:50]} 9. Bxf5 {[%emt 0:00:26]} gxf5 {[%emt 0:00:16]} 10. Bg5 {[%emt 0:09:08]} Ne4 {[%emt 0:04:03]} 11. Nbd2 {[%emt 0:07:14]} O-O-O {[%emt 0:07:54]} 12. Re1 {[%emt 0:03:07]} Rg8 {[%emt 0:06:24]} 13. Bh4 {[%emt 0:00:45]} Bh6 {[%emt 0:04:20]} 14. Qc2 {[%emt 0:10:07]} Rg7 {[%emt 0:07:06]} 15. Nf1 {[%emt 0:18:15]} Rdg8 {[%emt 0:06:09]} 16. g3 {[%emt 0:02:57]} e6 {[%emt 0:06:22]} 17. Rad1 {[%emt 0:11:52]} Ng5 {[%emt 0:04:35]} 18. Bxg5 {[%emt 0:09:05]} Bxg5 {[%emt 0:01:44]} 19. Kg2 {[%emt 0:05:33]} h5 {[%emt 0:03:42]} 20. h4 {[%emt 0:00:31]} Be7 {[%emt 0:02:14]} 21. Qe2 {[%emt 0:02:38]} f4 {[%emt 0:02:30]} 22. b3 {[%emt 0:07:13]} fxg3 {[%emt 0:04:10]} 23. fxg3 {[%emt 0:00:07]} Rg4 {[%emt 0:03:26]} 24. Rd3 {[%emt 0:01:59]} Bxh4 {[%emt 0:03:27]} 25. Nxh4 {[%emt 0:00:26]} Rxh4 {[%emt 0:00:31]} 26. Qf3 {[%emt 0:01:27]} Rhg4 {[%emt 0:02:26]} 27. Qf2 {[%emt 0:01:47]} h4 {[%emt 0:02:28]} 28. Ree3 {[%emt 0:00:20]} Nd8 {[%emt 0:04:12]} 29. Rf3 {[%emt 0:01:39]} f5 {[%emt 0:02:08]} 30. Kh3 {[%emt 0:00:36]} hxg3 {[%emt 0:02:21]} 31. Rxg3 {[%emt 0:00:44]} Qh7+ {[%emt 0:03:46]} 32. Kg2 {[%emt 0:00:23]} Rh8 {[%emt 0:01:18]} 33. Kf3 {[%emt 0:00:54]} Qh1+ {[%emt 0:01:52]} 34. Qg2 {[%emt 0:00:52]} Rxg3+ {[%emt 0:02:39]} 35. Nxg3 {[%emt 0:00:20]} Qh4 {[%emt 0:01:56]} 36. Kf2 {[%emt 0:00:37]} f4 {[%emt 0:01:12]} 37. Rf3 {[%emt 0:01:25]} fxg3+ {[%emt 0:00:31]} 38. Qxg3 {[%emt 0:00:07]} Qxg3+ {[%emt 0:00:42]} 39. Kxg3 {[%emt 0:00:05]} Kd7 {[%emt 0:00:14]} 40. b4 {[%emt 0:00:00]} Ke7 {[%emt 0:00:00]} 41. a4 {[%emt 0:00:00]} Rg8+ {[%emt 0:00:00]} 42. Kf2 {[%emt 0:00:00]} Rf8 {[%emt 0:00:00]} 43. Rxf8 {[%emt 0:00:00]} Kxf8 {[%emt 0:00:00]} 44. Ke3 {[%emt 0:00:00]} Ke7 {[%emt 0:00:00]} 45. Kd3 {[%emt 0:00:00]} Nc6 {[%emt 0:00:00]} 46. Ke3 {[%emt 0:00:00]} Kf6 {[%emt 0:00:00]} 47. Kf4 {[%emt 0:00:00]} a6 {[%emt 0:00:00]} 48. a5 {[%emt 0:00:00]} Na7 {[%emt 0:00:00]} 49. Kg4 {[%emt 0:00:00]} Nb5 {[%emt 0:00:00]} 50. Kf4 {[%emt 0:00:00]} Nxc3 {[%emt 0:00:00]} 51. Ke3 {[%emt 0:00:00]} Na2 {[%emt 0:00:00]} 52. Kd3 {[%emt 0:00:00]} Nxb4+ {[%emt 0:00:00]} 53. Kc3 {[%emt 0:00:00]} Nc6 {[%emt 0:00:00]} 54. Kd3 {[%emt 0:00:00]} Nxa5 {[%emt 0:00:00]} 0-1

[Event "CZE-ch U14 Girls 2020"]
[Site "Kouty nad Desnou"]
[Date "2020.03.07"]
[Round "1.15"]
[White "Pejrimovska, Viola Ruby"]
[Black "Vavrinkova, Marie"]
[Result "1-0"]
[ECO "C42"]
[WhiteElo "1600"]
[BlackElo "1240"]
[Annotator "NA RC"]
[PlyCount "65"]
[EventDate "2020.03.07"]
[EventCountry "CZE"]
[SourceTitle "playchess.com"]
[Source "ChessBase"]
[SourceQuality "1"]
[TimeControl "5400+30"]

1. e4 {[%emt 0:00:00]} e5 {[%emt 0:00:00]} 2. Nf3 {[%emt 0:00:00]} Nf6 {[%emt 0:00:06]} 3. Nc3 {[%emt 0:00:00]} Bb4 {[%emt 0:00:17]} 4. Bc4 {[%emt 0:02:08]} O-O {[%emt 0:01:22]} 5. O-O {[%emt 0:00:38]} Nc6 {[%emt 0:01:33]} 6. Nd5 {[%emt 0:07:45]} Bc5 {[%emt 0:02:28]} 7. d4 {[%emt 0:06:30]} exd4 {[%emt 0:03:01]} 8. Bg5 {[%emt 0:01:54]} Be7 {[%emt 0:01:04]} 9. Nxe7+ {[%emt 0:02:33]} Qxe7 {[%emt 0:01:43]} 10. Re1 {[%emt 0:08:06]} d6 {[%emt 0:04:35]} 11. Nxd4 {[%emt 0:02:08]} Ne5 {[%emt 0:02:38]} 12. Nf5 {[%emt 0:01:04]} Qd8 {[%emt 0:03:37]} 13. Bb3 {[%emt 0:02:51]} h6 {[%emt 0:03:59]} 14. Bh4 {[%emt 0:02:15]} Ng6 {[%emt 0:01:48]} 15. Bg3 {[%emt 0:02:35]} Nxe4 {[%emt 0:02:01]} 16. Nxh6+ {[%emt 0:03:42]} gxh6 {[%emt 0:04:53]} 17. Rxe4 {[%emt 0:02:19]} Bf5 {[%emt 0:01:21]} 18. Re3 {[%emt 0:04:17]} Qf6 {[%emt 0:01:51]} 19. Rf3 {[%emt 0:04:50]} Rad8 {[%emt 0:06:46]} 20. Qd3 {[%emt 0:07:48]} Qxb2 {[%emt 0:01:06]} 21. Qc3 {[%emt 0:09:56]} Qxc3 {[%emt 0:03:30]} 22. Rxc3 {[%emt 0:00:07]} c6 {[%emt 0:01:15]} 23. Rf3 {[%emt 0:02:33]} Bg4 {[%emt 0:03:21]} 24. Rf6 {[%emt 0:02:04]} d5 {[%emt 0:01:01]} 25. h3 {[%emt 0:05:08]} Be6 {[%emt 0:05:34]} 26. Re1 {[%emt 0:02:34]} Kg7 {[%emt 0:02:01]} 27. Rf3 {[%emt 0:00:41]} c5 {[%emt 0:05:35]} 28. c3 {[%emt 0:02:02]} Rfe8 {[%emt 0:02:33]} 29. Bc2 {[%emt 0:02:09]} Re7 {[%emt 0:03:37]} 30. Bxg6 {[%emt 0:00:59]} fxg6 {[%emt 0:01:13]} 31. Be5+ {[%emt 0:00:20]} Kh7 {[%emt 0:01:52]} 32. Bf6 {[%emt 0:01:01]} Rf7 {[%emt 0:00:35]} 33. Bxd8 {[%emt 0:00:57]} 1-0